[Event "Titled Tuesday Blitz July 6 2021"]
[White "Levitskiy, Andrey"]
[Black "Maly, Alexey"]
[WhiteFideId "14132885"]
[BlackFideId "14103184"]
[WhiteElo "2323"]
[BlackElo "2285"]
[Result "1-0"]
[Round "02"]
[TimeControl "180+1"]
[Date "2021.07.06"]
[WhiteClock "0:00:53"]
[BlackClock "0:00:59"]

1. e4 {[%clk 0:02:15]}  c6 {[%clk 0:02:59]} 2. d4 {[%clk 0:02:14]}  d5 {[%clk 0:02:59]} 3. Nc3 {[%clk 0:02:15]}  dxe4 {[%clk 0:02:59]} 4. Nxe4 {[%clk 0:02:16]}  Bf5 {[%clk 0:02:59]} 5. Ng3 {[%clk 0:02:15]}  Bg6 {[%clk 0:03:00]} 6. h4 {[%clk 0:02:15]}  h6 {[%clk 0:03:00]} 7. Nf3 {[%clk 0:02:16]}  Nd7 {[%clk 0:02:59]} 8. h5 {[%clk 0:02:16]}  Bh7 {[%clk 0:03:00]} 9. Bd3 {[%clk 0:02:17]}  Bxd3 {[%clk 0:02:59]} 10. Qxd3 {[%clk 0:02:18]}  e6 {[%clk 0:02:59]} 11. Bd2 {[%clk 0:02:19]}  Ngf6 {[%clk 0:02:59]} 12. O-O-O {[%clk 0:02:19]}  Be7 {[%clk 0:02:59]} 13. Kb1 {[%clk 0:02:19]}  O-O {[%clk 0:02:59]} 14. Ne4 {[%clk 0:02:20]}  Nxe4 {[%clk 0:02:59]} 15. Qxe4 {[%clk 0:02:21]}  Nf6 {[%clk 0:02:58]} 16. Qe2 {[%clk 0:02:22]}  Qd5 {[%clk 0:02:57]} 17. Be3 {[%clk 0:02:22]}  Ng4 {[%clk 0:02:56]} 18. Bc1 {[%clk 0:02:22]}  Rad8 {[%clk 0:02:48]} 19. Ka1 {[%clk 0:01:46]}  Bf6 {[%clk 0:02:40]} 20. Ne1 {[%clk 0:01:37]}  Bg5 {[%clk 0:02:18]} 21. Qxg4 {[%clk 0:01:23]}  Bxc1 {[%clk 0:02:16]} 22. Rxc1 {[%clk 0:01:23]}  Qxd4 {[%clk 0:02:17]} 23. Qxd4 {[%clk 0:01:23]}  Rxd4 {[%clk 0:02:18]} 24. Nf3 {[%clk 0:01:21]}  Rg4 {[%clk 0:02:11]} 25. g3 {[%clk 0:01:20]}  Re4 {[%clk 0:02:10]} 26. Rhe1 {[%clk 0:01:20]}  Rc4 {[%clk 0:02:07]} 27. Kb1 {[%clk 0:01:19]}  Rc5 {[%clk 0:02:07]} 28. Re5 {[%clk 0:01:19]}  Rc4 {[%clk 0:02:05]} 29. Rd1 {[%clk 0:01:19]}  b6 {[%clk 0:01:56]} 30. Rd7 {[%clk 0:01:17]}  a5 {[%clk 0:01:56]} 31. c3 {[%clk 0:01:17]}  a4 {[%clk 0:01:41]} 32. Kc2 {[%clk 0:01:17]}  Re8 {[%clk 0:01:38]} 33. Nd4 {[%clk 0:01:13]}  b5 {[%clk 0:01:32]} 34. Rc7 {[%clk 0:01:11]}  Rd8 {[%clk 0:01:30]} 35. b3 {[%clk 0:01:04]}  axb3+ {[%clk 0:01:26]} 36. axb3 {[%clk 0:01:05]}  Rdxd4 {[%clk 0:01:23]} 37. bxc4 {[%clk 0:01:05]}  Rxc4 {[%clk 0:01:24]} 38. Kd3 {[%clk 0:01:00]}  Kf8 {[%clk 0:01:21]} 39. Re4 {[%clk 0:00:59]}  Rc5 {[%clk 0:01:20]} 40. Rd4 {[%clk 0:00:59]}  Ke8 {[%clk 0:01:17]} 41. Rdd7 {[%clk 0:00:58]}  Rf5 {[%clk 0:01:16]} 42. f4 {[%clk 0:00:58]}  c5 {[%clk 0:01:12]} 43. Ke4 {[%clk 0:00:55]}  b4 {[%clk 0:01:12]} 44. cxb4 {[%clk 0:00:55]}  cxb4 {[%clk 0:01:13]} 45. Re7+ {[%clk 0:00:54]}  Kf8 {[%clk 0:01:11]} 46. Rb7 {[%clk 0:00:53]}  b3 {[%clk 0:01:02]} 47. Rec7 {[%clk 0:00:52]}  Kg8 {[%clk 0:01:01]} 48. Rxb3 {[%clk 0:00:51]}  Rxh5 {[%clk 0:00:59]} 49. Rb8+ {[%clk 0:00:52]}  Kh7 {[%clk 0:00:59]} 50. Rxf7 {[%clk 0:00:53]} 1-0


[Site "https://www.chess.com"]

[Event "Titled Tuesday Blitz July 6 2021"]
[White "Ljukin, Sergei"]
[Black "Araujo Sanchez, Josue"]
[WhiteFideId "14102200"]
[BlackFideId "6416896"]
[WhiteElo "2309"]
[BlackElo "2181"]
[Result "1-0"]
[Round "02"]
[TimeControl "180+1"]
[Date "2021.07.06"]
[WhiteClock "0:00:07"]
[BlackClock "0:00:02"]

1. e4 {[%clk 0:02:56]}  c5 {[%clk 0:02:59]} 2. Nf3 {[%clk 0:02:55]}  e6 {[%clk 0:02:59]} 3. d4 {[%clk 0:02:55]}  cxd4 {[%clk 0:03:00]} 4. Nxd4 {[%clk 0:02:56]}  Nc6 {[%clk 0:03:00]} 5. Nc3 {[%clk 0:02:56]}  a6 {[%clk 0:03:00]} 6. Nxc6 {[%clk 0:02:53]}  bxc6 {[%clk 0:03:01]} 7. Bd3 {[%clk 0:02:53]}  d5 {[%clk 0:03:01]} 8. O-O {[%clk 0:02:53]}  Nf6 {[%clk 0:03:01]} 9. e5 {[%clk 0:02:52]}  Nd7 {[%clk 0:03:01]} 10. Re1 {[%clk 0:02:52]}  a5 {[%clk 0:03:00]} 11. Qg4 {[%clk 0:02:50]}  g6 {[%clk 0:02:54]} 12. b3 {[%clk 0:02:38]}  Bg7 {[%clk 0:02:51]} 13. f4 {[%clk 0:02:29]}  O-O {[%clk 0:02:37]} 14. Ba3 {[%clk 0:02:27]}  f5 {[%clk 0:02:32]} 15. Qe2 {[%clk 0:02:20]}  Re8 {[%clk 0:02:29]} 16. Na4 {[%clk 0:02:14]}  Rb8 {[%clk 0:02:16]} 17. Bd6 {[%clk 0:02:10]}  Ra8 {[%clk 0:02:05]} 18. c4 {[%clk 0:02:10]}  g5 {[%clk 0:02:04]} 19. fxg5 {[%clk 0:01:43]}  Qxg5 {[%clk 0:01:59]} 20. Rf1 {[%clk 0:01:35]}  Ba6 {[%clk 0:01:55]} 21. Rf3 {[%clk 0:01:34]}  f4 {[%clk 0:01:49]} 22. Re1 {[%clk 0:01:33]}  dxc4 {[%clk 0:01:34]} 23. bxc4 {[%clk 0:01:30]}  Ra7 {[%clk 0:01:23]} 24. Rh3 {[%clk 0:01:28]}  Nf8 {[%clk 0:01:16]} 25. Rh5 {[%clk 0:01:23]}  Qd8 {[%clk 0:01:15]} 26. Qg4 {[%clk 0:01:18]}  Rf7 {[%clk 0:01:03]} 27. Nc5 {[%clk 0:01:10]}  Bc8 {[%clk 0:01:01]} 28. Ne4 {[%clk 0:01:05]}  Ng6 {[%clk 0:00:40]} 29. Ng5 {[%clk 0:01:00]}  Qb6+ {[%clk 0:00:35]} 30. c5 {[%clk 0:00:59]}  Qb4 {[%clk 0:00:35]} 31. Rd1 {[%clk 0:00:47]}  Rf5 {[%clk 0:00:20]} 32. Nxh7 {[%clk 0:00:34]}  Nxe5 {[%clk 0:00:14]} 33. Bxe5 {[%clk 0:00:29]}  Qxc5+ {[%clk 0:00:14]} 34. Kh1 {[%clk 0:00:28]}  Qxe5 {[%clk 0:00:14]} 35. Bxf5 {[%clk 0:00:26]}  exf5 {[%clk 0:00:15]} 36. Qh4 {[%clk 0:00:26]}  Ba6 {[%clk 0:00:09]} 37. h3 {[%clk 0:00:21]}  Be2 {[%clk 0:00:09]} 38. Re1 {[%clk 0:00:20]}  f3 {[%clk 0:00:09]} 39. Rg5 {[%clk 0:00:14]}  Re6 {[%clk 0:00:06]} 40. Rg3 {[%clk 0:00:11]}  fxg2+ {[%clk 0:00:02]} 41. Rxg2 {[%clk 0:00:11]}  Qb5 {[%clk 0:00:01]} 42. Ng5 {[%clk 0:00:09]}  Re7 {[%clk 0:00:01]} 43. Qh7+ {[%clk 0:00:08]}  Kf8 {[%clk 0:00:02]} 44. Qxf5+ {[%clk 0:00:08]}  Ke8 {[%clk 0:00:02]} 45. Qc8# {[%clk 0:00:07]} 1-0


[Site "https://www.chess.com"]

[Event "Titled Tuesday Blitz July 6 2021"]
[White "Lobanov, Sergei"]
[Black "Pham, Le Thao Nguyen"]
[WhiteFideId "24183750"]
[BlackFideId "12401226"]
[WhiteElo "2380"]
[BlackElo "2286"]
[Result "0-1"]
[Round "02"]
[TimeControl "180+1"]
[Date "2021.07.06"]
[WhiteClock "0:00:15"]
[BlackClock "0:00:15"]

1. e4 {[%clk 0:03:00]}  c5 {[%clk 0:02:58]} 2. Nf3 {[%clk 0:02:59]}  e6 {[%clk 0:02:59]} 3. d4 {[%clk 0:02:58]}  cxd4 {[%clk 0:03:00]} 4. Nxd4 {[%clk 0:02:59]}  a6 {[%clk 0:03:00]} 5. Nc3 {[%clk 0:02:59]}  Qc7 {[%clk 0:03:00]} 6. Bd3 {[%clk 0:02:59]}  b5 {[%clk 0:03:00]} 7. O-O {[%clk 0:02:59]}  Bb7 {[%clk 0:03:01]} 8. Bg5 {[%clk 0:02:58]}  Nc6 {[%clk 0:02:58]} 9. Nxc6 {[%clk 0:02:57]}  dxc6 {[%clk 0:02:58]} 10. Qh5 {[%clk 0:02:52]}  Be7 {[%clk 0:02:52]} 11. Qh4 {[%clk 0:02:31]}  h6 {[%clk 0:02:35]} 12. Bxe7 {[%clk 0:02:29]}  Nxe7 {[%clk 0:02:36]} 13. f4 {[%clk 0:02:16]}  c5 {[%clk 0:02:28]} 14. e5 {[%clk 0:02:16]}  c4 {[%clk 0:02:28]} 15. Be4 {[%clk 0:02:15]}  Nf5 {[%clk 0:02:28]} 16. Bxf5 {[%clk 0:02:03]}  exf5 {[%clk 0:02:29]} 17. Rad1 {[%clk 0:02:01]}  O-O {[%clk 0:02:24]} 18. Rd6 {[%clk 0:01:57]}  Rfe8 {[%clk 0:02:17]} 19. Rfd1 {[%clk 0:01:56]}  Re7 {[%clk 0:02:16]} 20. h3 {[%clk 0:01:53]}  Rae8 {[%clk 0:02:15]} 21. Kh2 {[%clk 0:01:52]}  Qc5 {[%clk 0:02:00]} 22. Qg3 {[%clk 0:01:44]}  Kf8 {[%clk 0:01:55]} 23. a3 {[%clk 0:01:35]}  Re6 {[%clk 0:01:47]} 24. Rd7 {[%clk 0:01:17]}  Rg6 {[%clk 0:01:45]} 25. Rxb7 {[%clk 0:01:10]}  Rxg3 {[%clk 0:01:43]} 26. Kxg3 {[%clk 0:01:06]}  Qe3+ {[%clk 0:01:42]} 27. Kh2 {[%clk 0:01:06]}  Qxf4+ {[%clk 0:01:42]} 28. Kh1 {[%clk 0:01:04]}  Qxe5 {[%clk 0:01:29]} 29. Rdd7 {[%clk 0:01:03]}  Qg3 {[%clk 0:01:25]} 30. Rxf7+ {[%clk 0:00:51]}  Kg8 {[%clk 0:01:25]} 31. Rfe7 {[%clk 0:00:51]}  Rxe7 {[%clk 0:01:08]} 32. Rxe7 {[%clk 0:00:52]}  Qf2 {[%clk 0:01:02]} 33. Re2 {[%clk 0:00:51]}  Qf1+ {[%clk 0:01:02]} 34. Kh2 {[%clk 0:00:51]}  f4 {[%clk 0:01:01]} 35. Re8+ {[%clk 0:00:38]}  Kf7 {[%clk 0:00:56]} 36. Re5 {[%clk 0:00:38]}  g5 {[%clk 0:00:47]} 37. Ne4 {[%clk 0:00:27]}  Qc1 {[%clk 0:00:40]} 38. b3 {[%clk 0:00:19]}  Qxc2 {[%clk 0:00:32]} 39. bxc4 {[%clk 0:00:19]}  f3 {[%clk 0:00:19]} 40. Rf5+ {[%clk 0:00:16]}  Ke6 {[%clk 0:00:16]} 41. Nc5+ {[%clk 0:00:15]}  Kxf5 {[%clk 0:00:15]} 0-1


[Site "https://www.chess.com"]

[Event "Titled Tuesday Blitz July 6 2021"]
[White "Lopez Del Alamo, Antonio"]
[Black "Harutjunyan, Gevorg"]
[WhiteFideId "2227339"]
[BlackFideId "13300873"]
[WhiteElo "2085"]
[BlackElo "2498"]
[Result "0-1"]
[Round "02"]
[TimeControl "180+1"]
[Date "2021.07.06"]
[WhiteClock "0:00:08"]
[BlackClock "0:00:25"]

1. e4 {[%clk 0:02:56]}  c5 {[%clk 0:02:59]} 2. Nf3 {[%clk 0:02:45]}  d6 {[%clk 0:02:57]} 3. d4 {[%clk 0:02:44]}  cxd4 {[%clk 0:02:58]} 4. Nxd4 {[%clk 0:02:44]}  Nf6 {[%clk 0:02:57]} 5. Nc3 {[%clk 0:02:45]}  a6 {[%clk 0:02:57]} 6. Be2 {[%clk 0:02:44]}  e5 {[%clk 0:02:56]} 7. Nb3 {[%clk 0:02:45]}  Be7 {[%clk 0:02:57]} 8. Be3 {[%clk 0:02:45]}  Be6 {[%clk 0:02:56]} 9. Nd5 {[%clk 0:02:45]}  Nbd7 {[%clk 0:02:56]} 10. Qd3 {[%clk 0:02:44]}  Bxd5 {[%clk 0:02:56]} 11. exd5 {[%clk 0:02:44]}  b5 {[%clk 0:02:55]} 12. a4 {[%clk 0:02:40]}  O-O {[%clk 0:02:40]} 13. axb5 {[%clk 0:02:38]}  axb5 {[%clk 0:02:41]} 14. Rxa8 {[%clk 0:02:38]}  Qxa8 {[%clk 0:02:41]} 15. Qxb5 {[%clk 0:02:37]}  Rb8 {[%clk 0:02:39]} 16. Qc6 {[%clk 0:02:34]}  Qa2 {[%clk 0:02:18]} 17. Bc1 {[%clk 0:02:24]}  Nb6 {[%clk 0:01:14]} 18. O-O {[%clk 0:02:09]}  Nbxd5 {[%clk 0:01:13]} 19. Rd1 {[%clk 0:01:49]}  Nb4 {[%clk 0:01:12]} 20. Qc7 {[%clk 0:01:44]}  Re8 {[%clk 0:01:10]} 21. Bb5 {[%clk 0:01:08]}  Nbd5 {[%clk 0:01:09]} 22. Qb7 {[%clk 0:01:04]}  Qa8 {[%clk 0:01:04]} 23. Qxa8 {[%clk 0:01:02]}  Rxa8 {[%clk 0:01:05]} 24. Bc6 {[%clk 0:01:02]}  Rc8 {[%clk 0:00:59]} 25. Bxd5 {[%clk 0:01:02]}  Nxd5 {[%clk 0:01:00]} 26. Rxd5 {[%clk 0:01:02]}  Rxc2 {[%clk 0:01:01]} 27. Rd2 {[%clk 0:00:56]}  Rc4 {[%clk 0:01:00]} 28. Rd1 {[%clk 0:00:54]}  f5 {[%clk 0:00:58]} 29. f3 {[%clk 0:00:53]}  Kf7 {[%clk 0:00:58]} 30. Be3 {[%clk 0:00:51]}  Rb4 {[%clk 0:00:57]} 31. Rd3 {[%clk 0:00:49]}  Ke6 {[%clk 0:00:56]} 32. Kf1 {[%clk 0:00:47]}  Bf6 {[%clk 0:00:48]} 33. Ke2 {[%clk 0:00:43]}  e4 {[%clk 0:00:47]} 34. fxe4 {[%clk 0:00:42]}  fxe4 {[%clk 0:00:47]} 35. Nd4+ {[%clk 0:00:42]}  Kd5 {[%clk 0:00:46]} 36. Rb3 {[%clk 0:00:29]}  Rxb3 {[%clk 0:00:42]} 37. Nxb3 {[%clk 0:00:28]}  Bxb2 {[%clk 0:00:43]} 38. h3 {[%clk 0:00:25]}  Ke5 {[%clk 0:00:29]} 39. g3 {[%clk 0:00:22]}  Kd5 {[%clk 0:00:23]} 40. Bf4 {[%clk 0:00:20]}  Bf6 {[%clk 0:00:20]} 41. Ke3 {[%clk 0:00:20]}  Bd8 {[%clk 0:00:20]} 42. h4 {[%clk 0:00:19]}  Bb6+ {[%clk 0:00:21]} 43. Ke2 {[%clk 0:00:19]}  Kc4 {[%clk 0:00:22]} 44. Nd2+ {[%clk 0:00:19]}  Kd5 {[%clk 0:00:22]} 45. Nf1 {[%clk 0:00:19]}  Ke6 {[%clk 0:00:22]} 46. Be3 {[%clk 0:00:17]}  Bc7 {[%clk 0:00:21]} 47. Bd4 {[%clk 0:00:18]}  d5 {[%clk 0:00:22]} 48. Ke3 {[%clk 0:00:17]}  g6 {[%clk 0:00:21]} 49. g4 {[%clk 0:00:17]}  h6 {[%clk 0:00:21]} 50. Nd2 {[%clk 0:00:15]}  g5 {[%clk 0:00:21]} 51. h5 {[%clk 0:00:15]}  Bf4+ {[%clk 0:00:21]} 52. Ke2 {[%clk 0:00:15]}  Be5 {[%clk 0:00:21]} 53. Bxe5 {[%clk 0:00:14]}  Kxe5 {[%clk 0:00:22]} 54. Ke3 {[%clk 0:00:14]}  d4+ {[%clk 0:00:23]} 55. Ke2 {[%clk 0:00:15]}  Kf4 {[%clk 0:00:23]} 56. Nc4 {[%clk 0:00:12]}  Kxg4 {[%clk 0:00:23]} 57. Nd6 {[%clk 0:00:10]}  Kf4 {[%clk 0:00:24]} 58. Nf7 {[%clk 0:00:10]}  g4 {[%clk 0:00:24]} 59. Nxh6 {[%clk 0:00:10]}  d3+ {[%clk 0:00:24]} 60. Ke1 {[%clk 0:00:10]}  g3 {[%clk 0:00:24]} 61. Ng8 {[%clk 0:00:08]}  g2 {[%clk 0:00:23]} 62. Kf2 {[%clk 0:00:08]}  d2 {[%clk 0:00:24]} 63. h6 {[%clk 0:00:08]}  g1=Q+ {[%clk 0:00:23]} 64. Kxg1 {[%clk 0:00:08]}  d1=Q+ {[%clk 0:00:24]} 65. Kh2 {[%clk 0:00:08]}  Qh5+ {[%clk 0:00:24]} 66. Kg2 {[%clk 0:00:08]}  Qg6+ {[%clk 0:00:25]} 67. Kf2 {[%clk 0:00:08]}  Qxg8 {[%clk 0:00:25]} 0-1


[Site "https://www.chess.com"]

[Event "Titled Tuesday Blitz July 6 2021"]
[White "Mahajan, Rushaan"]
[Black "Lana Rodriguez, David"]
[WhiteFideId "30934222"]
[BlackFideId "2270803"]
[WhiteElo "1897"]
[BlackElo "2401"]
[Result "0-1"]
[Round "02"]
[TimeControl "180+1"]
[Date "2021.07.06"]
[WhiteClock "0:00:02"]
[BlackClock "0:01:21"]

1. Nf3 {[%clk 0:03:00]}  e6 {[%clk 0:03:00]} 2. g3 {[%clk 0:03:00]}  Nf6 {[%clk 0:02:59]} 3. Bg2 {[%clk 0:03:01]}  d5 {[%clk 0:02:57]} 4. c4 {[%clk 0:03:01]}  Be7 {[%clk 0:02:53]} 5. d4 {[%clk 0:03:01]}  O-O {[%clk 0:02:50]} 6. Nc3 {[%clk 0:03:00]}  dxc4 {[%clk 0:02:46]} 7. Ne5 {[%clk 0:03:00]}  c5 {[%clk 0:02:43]} 8. dxc5 {[%clk 0:02:57]}  Qxd1+ {[%clk 0:02:39]} 9. Nxd1 {[%clk 0:02:56]}  Bxc5 {[%clk 0:02:40]} 10. Nxc4 {[%clk 0:02:54]}  Nc6 {[%clk 0:02:38]} 11. Be3 {[%clk 0:02:52]}  Nd4 {[%clk 0:02:31]} 12. Rc1 {[%clk 0:02:29]}  Nd5 {[%clk 0:02:29]} 13. Bd2 {[%clk 0:02:04]}  b6 {[%clk 0:02:24]} 14. Nde3 {[%clk 0:01:58]}  Bb7 {[%clk 0:02:19]} 15. Nxd5 {[%clk 0:01:54]}  Bxd5 {[%clk 0:02:17]} 16. Bxd5 {[%clk 0:01:50]}  exd5 {[%clk 0:02:18]} 17. Ne3 {[%clk 0:01:37]}  Rfd8 {[%clk 0:02:17]} 18. Nc2 {[%clk 0:01:19]}  Nxc2+ {[%clk 0:02:12]} 19. Rxc2 {[%clk 0:01:20]}  Rac8 {[%clk 0:02:11]} 20. e3 {[%clk 0:01:08]}  Bxe3 {[%clk 0:02:07]} 21. Rxc8 {[%clk 0:01:06]}  Bxd2+ {[%clk 0:02:06]} 22. Kxd2 {[%clk 0:01:06]}  Rxc8 {[%clk 0:02:07]} 23. Re1 {[%clk 0:01:03]}  Kf8 {[%clk 0:02:03]} 24. Re5 {[%clk 0:01:03]}  Rc5 {[%clk 0:02:04]} 25. b4 {[%clk 0:00:48]}  Rc4 {[%clk 0:01:59]} 26. a3 {[%clk 0:00:46]}  Rd4+ {[%clk 0:01:52]} 27. Kc2 {[%clk 0:00:29]}  f6 {[%clk 0:01:47]} 28. Re3 {[%clk 0:00:26]}  Kf7 {[%clk 0:01:42]} 29. b5 {[%clk 0:00:12]}  Rc4+ {[%clk 0:01:42]} 30. Kb3 {[%clk 0:00:10]}  Re4 {[%clk 0:01:38]} 31. Rc3 {[%clk 0:00:09]}  d4 {[%clk 0:01:35]} 32. Rd3 {[%clk 0:00:09]}  Ke6 {[%clk 0:01:35]} 33. Kc4 {[%clk 0:00:08]}  Ke5 {[%clk 0:01:34]} 34. f4+ {[%clk 0:00:09]}  Ke6 {[%clk 0:01:33]} 35. Rxd4 {[%clk 0:00:09]}  Re2 {[%clk 0:01:33]} 36. Rd8 {[%clk 0:00:05]}  Rc2+ {[%clk 0:01:29]} 37. Kb3 {[%clk 0:00:03]}  Rc7 {[%clk 0:01:26]} 38. Rh8 {[%clk 0:00:03]}  h6 {[%clk 0:01:25]} 39. g4 {[%clk 0:00:02]}  Kd5 {[%clk 0:01:25]} 40. Re8 {[%clk 0:00:01]}  Kc5 {[%clk 0:01:22]} 41. a4 {[%clk 0:00:02]}  Kd4 {[%clk 0:01:22]} 42. Rd8+ {[%clk 0:00:01]}  Ke4 {[%clk 0:01:22]} 43. f5 {[%clk 0:00:02]}  Kf4 {[%clk 0:01:22]} 44. Rd4+ {[%clk 0:00:02]}  Kf3 {[%clk 0:01:22]} 45. h4 {[%clk 0:00:02]}  Re7 {[%clk 0:01:21]} 46. h5 {[%clk 0:00:02]}  Re3+ {[%clk 0:01:20]} 47. Kb4 {[%clk 0:00:02]}  Re4 {[%clk 0:01:21]} 0-1


[Site "https://www.chess.com"]

[Event "Titled Tuesday Blitz July 6 2021"]
[White "Malka, Samuel"]
[Black "Zubritskiy, Artyom"]
[WhiteFideId "20643675"]
[BlackFideId "4181247"]
[WhiteElo "2459"]
[BlackElo "2559"]
[Result "0-1"]
[Round "02"]
[TimeControl "180+1"]
[Date "2021.07.06"]
[WhiteClock "0:00:14"]
[BlackClock "0:00:09"]

1. d4 {[%clk 0:03:00]}  f5 {[%clk 0:02:58]} 2. g3 {[%clk 0:03:00]}  Nf6 {[%clk 0:02:58]} 3. Bg2 {[%clk 0:03:00]}  g6 {[%clk 0:02:58]} 4. Nd2 {[%clk 0:02:57]}  Bg7 {[%clk 0:02:55]} 5. e4 {[%clk 0:02:58]}  fxe4 {[%clk 0:02:55]} 6. Nxe4 {[%clk 0:02:59]}  Nxe4 {[%clk 0:02:48]} 7. Bxe4 {[%clk 0:03:00]}  Nc6 {[%clk 0:02:29]} 8. c3 {[%clk 0:02:59]}  O-O {[%clk 0:02:26]} 9. Qb3+ {[%clk 0:02:48]}  e6 {[%clk 0:02:20]} 10. Be3 {[%clk 0:02:43]}  d5 {[%clk 0:02:14]} 11. Bg2 {[%clk 0:02:36]}  Na5 {[%clk 0:02:13]} 12. Qc2 {[%clk 0:02:30]}  Nc4 {[%clk 0:02:10]} 13. Nf3 {[%clk 0:02:11]}  c6 {[%clk 0:02:00]} 14. O-O-O {[%clk 0:02:02]}  Qa5 {[%clk 0:01:42]} 15. a3 {[%clk 0:01:46]}  e5 {[%clk 0:01:29]} 16. dxe5 {[%clk 0:01:41]}  Bf5 {[%clk 0:01:13]} 17. Qb3 {[%clk 0:01:21]}  Bg4 {[%clk 0:01:06]} 18. Bf4 {[%clk 0:01:15]}  Bxf3 {[%clk 0:01:01]} 19. Bxf3 {[%clk 0:01:13]}  g5 {[%clk 0:01:01]} 20. Qxb7 {[%clk 0:00:27]}  gxf4 {[%clk 0:01:00]} 21. Qxc6 {[%clk 0:00:28]}  Kh8 {[%clk 0:00:49]} 22. Qxd5 {[%clk 0:00:27]}  Rac8 {[%clk 0:00:24]} 23. Qxa5 {[%clk 0:00:23]}  Nxa5 {[%clk 0:00:25]} 24. Bg4 {[%clk 0:00:21]}  Rce8 {[%clk 0:00:21]} 25. e6 {[%clk 0:00:21]}  fxg3 {[%clk 0:00:16]} 26. fxg3 {[%clk 0:00:22]}  Rf2 {[%clk 0:00:16]} 27. Rd2 {[%clk 0:00:23]}  Nb3+ {[%clk 0:00:15]} 28. Kc2 {[%clk 0:00:23]}  Nxd2 {[%clk 0:00:15]} 29. Kd3 {[%clk 0:00:22]}  Nb3 {[%clk 0:00:12]} 30. Re1 {[%clk 0:00:19]}  Rxb2 {[%clk 0:00:11]} 31. e7 {[%clk 0:00:19]}  Bf6 {[%clk 0:00:10]} 32. Bh5 {[%clk 0:00:13]}  Rxe7 {[%clk 0:00:09]} 33. Rf1 {[%clk 0:00:14]} 0-1


[Site "https://www.chess.com"]

[Event "Titled Tuesday Blitz July 6 2021"]
[White "Martin, Lewis"]
[Black "Nitish Belurkar"]
[WhiteFideId "410551"]
[BlackFideId "5084768"]
[WhiteElo "2145"]
[BlackElo "2306"]
[Result "0-1"]
[Round "02"]
[TimeControl "180+1"]
[Date "2021.07.06"]
[WhiteClock "0:00:05"]
[BlackClock "0:01:25"]

1. e4 {[%clk 0:03:00]}  d5 {[%clk 0:02:59]} 2. exd5 {[%clk 0:03:00]}  Nf6 {[%clk 0:03:00]} 3. Nc3 {[%clk 0:02:57]}  Nxd5 {[%clk 0:02:59]} 4. Bc4 {[%clk 0:02:57]}  Nb6 {[%clk 0:02:59]} 5. Bb3 {[%clk 0:02:58]}  c5 {[%clk 0:03:00]} 6. d3 {[%clk 0:02:58]}  Nc6 {[%clk 0:03:00]} 7. Nge2 {[%clk 0:02:54]}  Bf5 {[%clk 0:02:55]} 8. O-O {[%clk 0:02:52]}  e6 {[%clk 0:02:53]} 9. Be3 {[%clk 0:02:46]}  Be7 {[%clk 0:02:53]} 10. Ng3 {[%clk 0:02:44]}  Bg6 {[%clk 0:02:52]} 11. f4 {[%clk 0:02:44]}  Nd4 {[%clk 0:02:48]} 12. Nce2 {[%clk 0:02:39]}  Bf6 {[%clk 0:02:40]} 13. Rb1 {[%clk 0:01:58]}  O-O {[%clk 0:02:33]} 14. Kh1 {[%clk 0:01:57]}  Rc8 {[%clk 0:02:29]} 15. Bxd4 {[%clk 0:01:43]}  Bxd4 {[%clk 0:02:26]} 16. f5 {[%clk 0:01:41]}  exf5 {[%clk 0:02:26]} 17. Nxf5 {[%clk 0:01:41]}  Bf6 {[%clk 0:02:26]} 18. Neg3 {[%clk 0:01:34]}  c4 {[%clk 0:02:20]} 19. dxc4 {[%clk 0:01:33]}  Nxc4 {[%clk 0:02:21]} 20. c3 {[%clk 0:01:30]}  Nd2 {[%clk 0:01:57]} 21. Rc1 {[%clk 0:01:10]}  Nxf1 {[%clk 0:01:55]} 22. Qxf1 {[%clk 0:01:10]}  Qc7 {[%clk 0:01:52]} 23. Ne4 {[%clk 0:01:02]}  Qe5 {[%clk 0:01:49]} 24. Nh6+ {[%clk 0:00:56]}  Kh8 {[%clk 0:01:48]} 25. Nxf6 {[%clk 0:00:55]}  Qxf6 {[%clk 0:01:49]} 26. Qxf6 {[%clk 0:00:54]}  gxf6 {[%clk 0:01:50]} 27. Ng4 {[%clk 0:00:54]}  Kg7 {[%clk 0:01:49]} 28. Rf1 {[%clk 0:00:50]}  Rc6 {[%clk 0:01:49]} 29. Bd5 {[%clk 0:00:46]}  Rb6 {[%clk 0:01:50]} 30. b3 {[%clk 0:00:46]}  Rd8 {[%clk 0:01:46]} 31. c4 {[%clk 0:00:45]}  Ra6 {[%clk 0:01:47]} 32. a4 {[%clk 0:00:44]}  Rb6 {[%clk 0:01:46]} 33. Rf3 {[%clk 0:00:39]}  Be4 {[%clk 0:01:44]} 34. Rg3 {[%clk 0:00:34]}  Bxd5 {[%clk 0:01:44]} 35. Ne3+ {[%clk 0:00:34]}  Kf8 {[%clk 0:01:44]} 36. Nxd5 {[%clk 0:00:34]}  Re6 {[%clk 0:01:44]} 37. h4 {[%clk 0:00:33]}  a6 {[%clk 0:01:42]} 38. Kh2 {[%clk 0:00:30]}  Rd7 {[%clk 0:01:41]} 39. h5 {[%clk 0:00:30]}  b5 {[%clk 0:01:39]} 40. h6 {[%clk 0:00:27]}  f5 {[%clk 0:01:37]} 41. Rh3 {[%clk 0:00:17]}  bxc4 {[%clk 0:01:37]} 42. bxc4 {[%clk 0:00:17]}  Red6 {[%clk 0:01:37]} 43. Ne3 {[%clk 0:00:14]}  Rf6 {[%clk 0:01:36]} 44. Nd5 {[%clk 0:00:08]}  Rg6 {[%clk 0:01:32]} 45. Nf4 {[%clk 0:00:08]}  Rc6 {[%clk 0:01:31]} 46. Rc3 {[%clk 0:00:05]}  Rxh6+ {[%clk 0:01:30]} 47. Kg3 {[%clk 0:00:06]}  Rc6 {[%clk 0:01:29]} 48. c5 {[%clk 0:00:05]}  Rd4 {[%clk 0:01:28]} 49. Ne2 {[%clk 0:00:04]}  Rd5 {[%clk 0:01:28]} 50. Rb3 {[%clk 0:00:03]}  Rdxc5 {[%clk 0:01:28]} 51. Rb8+ {[%clk 0:00:04]}  Kg7 {[%clk 0:01:28]} 52. Nd4 {[%clk 0:00:03]}  Rd6 {[%clk 0:01:27]} 53. Nf3 {[%clk 0:00:03]}  f4+ {[%clk 0:01:25]} 54. Kxf4 {[%clk 0:00:02]}  Rc4+ {[%clk 0:01:26]} 55. Kg3 {[%clk 0:00:02]}  Rxa4 {[%clk 0:01:27]} 56. Rb3 {[%clk 0:00:01]}  Ra5 {[%clk 0:01:26]} 57. Re3 {[%clk 0:00:02]}  Rb5 {[%clk 0:01:26]} 58. Re4 {[%clk 0:00:02]}  a5 {[%clk 0:01:26]} 59. Rg4+ {[%clk 0:00:03]}  Rg6 {[%clk 0:01:26]} 60. Nh4 {[%clk 0:00:04]}  Rxg4+ {[%clk 0:01:25]} 61. Kxg4 {[%clk 0:00:05]} 0-1


[Site "https://www.chess.com"]